[Event "WYCC U14 Open 2019"]
[Site "Mumbai"]
[Date "2019.10.03"]
[Round "2.10"]
[White "Srihari L R"]
[Black "Fardet, Elouan"]
[Result "1-0"]
[ECO "A05"]
[WhiteElo "2283"]
[BlackElo "2010"]
[Annotator "NA"]
[PlyCount "115"]
[EventDate "2019.10.02"]
[EventType "swiss"]
[EventCountry "IND"]
[SourceTitle "playchess.com"]
[Source "ChessBase"]
[SourceQuality "1"]
[TimeControl "40/5400+30:1800+30"]

1. Nf3 {[%emt 0:00:00]} Nf6 {[%emt 0:00:00]} 2. c4 {[%emt 0:00:00]} g6 {[%emt 0:00:00]} 3. b4 {[%emt 0:00:03]} Bg7 {[%emt 0:00:00]} 4. Bb2 {[%emt 0:00:05]} O-O {[%emt 0:00:00]} 5. g3 {[%emt 0:00:07]} c6 {[%emt 0:00:01]} 6. Bg2 {[%emt 0:00:24]} d5 {[%emt 0:00:06]} 7. cxd5 {[%emt 0:00:20]} Nxd5 {[%emt 0:00:06]} 8. Bxg7 {[%emt 0:01:10]} Kxg7 {[%emt 0:00:07]} 9. a3 {[%emt 0:12:31]} a5 {[%emt 0:02:04]} 10. bxa5 {[%emt 0:06:29]} Rxa5 {[%emt 0:06:12]} 11. O-O {[%emt 0:00:39]} Na6 {[%emt 0:07:21]} 12. d4 {[%emt 0:02:41]} Nac7 {[%emt 0:14:20]} 13. Ne5 {[%emt 0:17:33]} Nb5 {[%emt 0:10:23]} 14. e3 {[%emt 0:04:33]} Nd6 {[%emt 0:10:12]} 15. Nd2 {[%emt 0:01:57]} f6 {[%emt 0:03:06]} 16. Nd3 {[%emt 0:09:04]} Nc7 {[%emt 0:09:12]} 17. a4 {[%emt 0:03:35]} Ra7 {[%emt 0:05:21]} 18. Qc2 {[%emt 0:03:23]} Na6 {[%emt 0:02:17]} 19. Qc3 {[%emt 0:04:38]} Bf5 {[%emt 0:03:09]} 20. e4 {[%emt 0:03:54]} Be6 {[%emt 0:01:14]} 21. Rfb1 {[%emt 0:01:04]} Qd7 {[%emt 0:02:10]} 22. Rb2 {[%emt 0:06:20]} Rd8 {[%emt 0:01:56]} 23. Rab1 {[%emt 0:01:39]} Bf7 {[%emt 0:04:08]} 24. Nf4 {[%emt 0:06:11]} Nb8 {[%emt 0:03:43]} 25. Bh3 {[%emt 0:01:13]} Qc7 {[%emt 0:02:07]} 26. e5 {[%emt 0:00:23]} Nc8 {[%emt 0:01:11]} 27. Ne4 {[%emt 0:01:44]} g5 {[%emt 0:04:33]} 28. Nc5 {[%emt 0:04:29]} gxf4 {[%emt 0:01:52]} 29. Rxb7 {[%emt 0:00:07]} Qa5 {[%emt 0:00:02]} 30. Qxa5 {[%emt 0:00:08]} Rxa5 {[%emt 0:00:06]} 31. exf6+ {[%emt 0:01:04]} Kxf6 {[%emt 0:00:39]} 32. Rxb8 {[%emt 0:00:20]} Rxd4 {[%emt 0:00:33]} 33. Nb7 {[%emt 0:00:24]} Raxa4 {[%emt 0:01:07]} 34. Rxc8 {[%emt 0:00:17]} Bd5 {[%emt 0:01:37]} 35. Rf8+ {[%emt 0:00:54]} Kg7 {[%emt 0:00:05]} 36. Rxf4 {[%emt 0:00:31]} Rxf4 {[%emt 0:00:05]} 37. gxf4 {[%emt 0:00:05]} Rxf4 {[%emt 0:00:04]} 38. Re1 {[%emt 0:00:51]} Kf6 {[%emt 0:00:33]} 39. Nc5 {[%emt 0:00:49]} Rh4 {[%emt 0:00:44]} 40. Bg2 {[%emt 0:00:32]} Rg4 {[%emt 0:01:13]} 41. Ne4+ {[%emt 0:30:08]} Kf7 {[%emt 0:30:23]} 42. Ng3 {[%emt 0:00:16]} e6 43. Rc1 {[%emt 0:01:08]} Kg6 {[%emt 0:01:24]} 44. Kf1 {[%emt 0:02:04]} h5 {[%emt 0:00:59]} 45. Bxd5 {[%emt 0:00:08]} cxd5 {[%emt 0:00:06]} 46. h3 {[%emt 0:02:00]} Rg5 {[%emt 0:00:38]} 47. Rc6 {[%emt 0:00:17]} Kf7 {[%emt 0:00:20]} 48. Ne2 {[%emt 0:00:47]} Rf5 {[%emt 0:00:18]} 49. Nd4 {[%emt 0:00:19]} Re5 {[%emt 0:00:02]} 50. f3 {[%emt 0:00:52]} h4 {[%emt 0:00:59]} 51. Kf2 {[%emt 0:00:09]} Kf6 {[%emt 0:00:08]} 52. Ra6 {[%emt 0:00:19]} Kf7 {[%emt 0:00:38]} 53. Ra7+ {[%emt 0:00:05]} Kg6 {[%emt 0:00:17]} 54. Re7 {[%emt 0:00:06]} Kf6 {[%emt 0:00:18]} 55. Rh7 {[%emt 0:00:06]} Kg5 {[%emt 0:00:11]} 56. f4+ {[%emt 0:00:06]} Kxf4 {[%emt 0:00:13]} 57. Rxh4+ {[%emt 0:00:06]} Kg5 {[%emt 0:00:03]} 58. Nf3+ {[%emt 0:00:06]} 1-0

[Event "WYCC U14 Open 2019"]
[Site "Mumbai"]
[Date "2019.10.03"]
[Round "3.4"]
[White "Colbow, Collin"]
[Black "Chyzy, Jakub"]
[Result "1-0"]
[ECO "C70"]
[WhiteElo "2148"]
[BlackElo "2327"]
[Annotator "NA"]
[PlyCount "36"]
[EventDate "2019.10.02"]
[EventType "swiss"]
[EventCountry "IND"]
[SourceTitle "playchess.com"]
[Source "ChessBase"]
[SourceQuality "1"]
[TimeControl "40/5400+30:1800+30"]

1. e4 {[%emt 0:00:00]} e5 {[%emt 0:00:00]} 2. Nf3 {[%emt 0:00:00]} Nc6 {[%emt 0:00:00]} 3. Bb5 {[%emt 0:00:00]} a6 {[%emt 0:00:00]} 4. Ba4 {[%emt 0:00:00]} Nge7 {[%emt 0:00:00]} 5. O-O {[%emt 0:00:18]} g6 {[%emt 0:00:00]} 6. c3 {[%emt 0:00:19]} Bg7 {[%emt 0:00:00]} 7. d4 {[%emt 0:00:11]} exd4 {[%emt 0:00:06]} 8. cxd4 {[%emt 0:00:04]} b5 {[%emt 0:00:04]} 9. Bb3 {[%emt 0:00:11]} O-O {[%emt 0:00:09]} 10. Nc3 {[%emt 0:00:09]} d6 {[%emt 0:00:08]} 11. Nd5 {[%emt 0:01:22]} h6 {[%emt 0:09:59]} 12. Nxe7+ {[%emt 0:00:14]} Nxe7 {[%emt 0:00:24]} 13. Be3 {[%emt 0:01:35]} Kh7 {[%emt 0:09:32]} 14. Re1 {[%emt 0:08:21]} Bb7 {[%emt 0:04:58]} 15. Qd3 {[%emt 0:05:11]} f5 {[%emt 0:02:07]} 16. Ng5+ {[%emt 0:03:08]} hxg5 {[%emt 0:19:13]} 17. Bxg5 {[%emt 0:00:08]} d5 {[%emt 0:00:30]} 18. Qh3+ {[%emt 0:02:22]} Kg8 {[%emt 0:00:03]} 1-0

[Event "WYCC U14 Open 2019"]
[Site "Mumbai"]
[Date "2019.10.03"]
[Round "3.5"]
[White "Huang, Patrick"]
[Black "Srihari L R"]
[Result "0-1"]
[ECO "A41"]
[WhiteElo "2120"]
[BlackElo "2283"]
[Annotator "NA"]
[PlyCount "65"]
[EventDate "2019.10.02"]
[EventType "swiss"]
[EventCountry "IND"]
[SourceTitle "playchess.com"]
[Source "ChessBase"]
[SourceQuality "1"]
[TimeControl "40/5400+30:1800+30"]

1. d4 {[%emt 0:00:00]} d6 {[%emt 0:01:34]} 2. Bf4 {[%emt 0:00:00]} g6 {[%emt 0:02:55]} 3. Nf3 {[%emt 0:01:15]} Bg7 {[%emt 0:00:08]} 4. e3 {[%emt 0:00:10]} Nd7 {[%emt 0:01:32]} 5. h3 {[%emt 0:01:29]} b6 {[%emt 0:04:15]} 6. Be2 {[%emt 0:00:51]} Bb7 {[%emt 0:00:06]} 7. O-O {[%emt 0:00:09]} e6 {[%emt 0:00:03]} 8. c3 {[%emt 0:05:42]} Qe7 {[%emt 0:09:33]} 9. Nbd2 {[%emt 0:01:50]} f5 {[%emt 0:02:52]} 10. Qb3 {[%emt 0:04:49]} Nh6 {[%emt 0:22:51]} 11. Bc4 {[%emt 0:12:14]} d5 {[%emt 0:03:56]} 12. Be2 {[%emt 0:02:30]} Rc8 {[%emt 0:06:31]} 13. c4 {[%emt 0:09:40]} Nf7 {[%emt 0:02:16]} 14. cxd5 {[%emt 0:03:30]} exd5 {[%emt 0:04:21]} 15. Rac1 {[%emt 0:00:37]} c6 {[%emt 0:01:02]} 16. a3 {[%emt 0:08:44]} O-O {[%emt 0:00:35]} 17. Rc2 {[%emt 0:05:44]} g5 {[%emt 0:08:12]} 18. Bh2 {[%emt 0:04:26]} Rce8 {[%emt 0:04:04]} 19. Bd3 {[%emt 0:04:36]} g4 {[%emt 0:00:54]} 20. hxg4 {[%emt 0:00:18]} fxg4 {[%emt 0:00:07]} 21. Ne1 {[%emt 0:00:32]} Nf6 {[%emt 0:04:52]} 22. Qb4 {[%emt 0:05:34]} Qe6 {[%emt 0:01:43]} 23. Nb3 {[%emt 0:03:21]} Nh5 {[%emt 0:03:57]} 24. Re2 {[%emt 0:01:08]} Qh6 {[%emt 0:05:22]} 25. Nd2 {[%emt 0:07:32]} Bc8 {[%emt 0:04:01]} 26. e4 {[%emt 0:03:17]} Ng5 {[%emt 0:01:55]} 27. exd5 {[%emt 0:01:35]} Rxe2 {[%emt 0:00:07]} 28. Bxe2 {[%emt 0:00:10]} cxd5 {[%emt 0:00:09]} 29. Qd6 {[%emt 0:02:00]} Qxd6 {[%emt 0:01:03]} 30. Bxd6 {[%emt 0:00:07]} Re8 {[%emt 0:00:09]} 31. Bb5 {[%emt 0:01:11]} Re6 {[%emt 0:00:04]} 32. Be5 {[%emt 0:00:40]} Bxe5 {[%emt 0:00:05]} 33. Nc2 {[%emt 0:02:42]} 0-1

[Event "WYCC U14 Open 2019"]
[Site "Mumbai"]
[Date "2019.10.03"]
[Round "3.7"]
[White "Abinandhan R"]
[Black "Flores Quillas, Diego Saul Rodri"]
[Result "1/2-1/2"]
[ECO "B26"]
[WhiteElo "1830"]
[BlackElo "2164"]
[Annotator "NA"]
[PlyCount "62"]
[EventDate "2019.10.02"]
[EventType "swiss"]
[EventCountry "IND"]
[SourceTitle "playchess.com"]
[Source "ChessBase"]
[SourceQuality "1"]
[TimeControl "40/5400+30:1800+30"]

1. e4 {[%emt 0:00:00]} c5 {[%emt 0:02:24]} 2. Nc3 Nc6 {[%emt 0:00:22]} 3. g3 {[%emt 0:00:00]} g6 {[%emt 0:00:42]} 4. Bg2 {[%emt 0:00:00]} Bg7 {[%emt 0:00:09]} 5. d3 {[%emt 0:00:08]} d6 {[%emt 0:00:21]} 6. Be3 {[%emt 0:00:14]} e5 {[%emt 0:00:57]} 7. Nh3 Nge7 {[%emt 0:05:24]} 8. O-O {[%emt 0:03:14]} O-O {[%emt 0:02:51]} 9. Qd2 {[%emt 0:02:02]} Rb8 {[%emt 0:08:19]} 10. Bh6 {[%emt 0:04:19]} Nd4 {[%emt 0:07:22]} 11. Bxg7 {[%emt 0:00:53]} Kxg7 {[%emt 0:01:11]} 12. f4 {[%emt 0:01:07]} f6 {[%emt 0:16:44]} 13. Nd1 {[%emt 0:04:53]} Bd7 {[%emt 0:07:34]} 14. c3 {[%emt 0:02:12]} Ndc6 {[%emt 0:01:45]} 15. Ne3 {[%emt 0:04:50]} b5 {[%emt 0:06:19]} 16. f5 {[%emt 0:04:01]} g5 {[%emt 0:02:40]} 17. Nf2 {[%emt 0:01:54]} Be8 {[%emt 0:13:33]} 18. Nd5 {[%emt 0:10:04]} Nxd5 {[%emt 0:10:26]} 19. exd5 {[%emt 0:00:08]} Ne7 {[%emt 0:00:19]} 20. Ne4 {[%emt 0:02:48]} Nxd5 {[%emt 0:01:12]} 21. Nxg5 {[%emt 0:00:27]} fxg5 {[%emt 0:00:03]} 22. Bxd5 {[%emt 0:00:09]} Qf6 {[%emt 0:00:08]} 23. Rae1 {[%emt 0:01:50]} Bf7 {[%emt 0:01:25]} 24. Bg2 {[%emt 0:00:19]} Rfe8 {[%emt 0:03:20]} 25. g4 {[%emt 0:01:25]} h6 {[%emt 0:02:39]} 26. Qf2 {[%emt 0:06:08]} Rbc8 {[%emt 0:01:37]} 27. a3 {[%emt 0:02:13]} Rc7 {[%emt 0:01:20]} 28. Qd2 {[%emt 0:01:58]} d5 {[%emt 0:00:35]} 29. Re2 {[%emt 0:02:04]} Rce7 {[%emt 0:02:05]} 30. Rfe1 {[%emt 0:00:32]} Rd8 {[%emt 0:00:24]} 31. h3 {[%emt 0:04:05]} a6 {[%emt 0:00:05]} 1/2-1/2

[Event "WYCC U14 Open 2019"]
[Site "Mumbai"]
[Date "2019.10.03"]
[Round "3.11"]
[White "Borhy, Marcell"]
[Black "Laux, Dominik"]
[Result "1-0"]
[ECO "A06"]
[WhiteElo "2321"]
[BlackElo "2015"]
[Annotator "NA RC"]
[PlyCount "59"]
[EventDate "2019.10.02"]
[EventType "swiss"]
[EventCountry "IND"]
[SourceTitle "playchess.com"]
[Source "ChessBase"]
[SourceQuality "1"]
[TimeControl "40/5400+30:1800+30"]

1. Nf3 {[%emt 0:00:00]} d5 {[%emt 0:00:00]} 2. g3 {[%emt 0:00:00]} Nf6 {[%emt 0:01:00]} 3. Bg2 {[%emt 0:00:00]} Nc6 {[%emt 0:01:32]} 4. d4 {[%emt 0:02:05]} Bf5 {[%emt 0:01:29]} 5. c4 {[%emt 0:02:52]} e6 {[%emt 0:01:26]} 6. O-O {[%emt 0:01:21]} Be7 {[%emt 0:02:33]} 7. cxd5 {[%emt 0:01:43]} exd5 {[%emt 0:00:27]} 8. Nc3 {[%emt 0:00:08]} O-O {[%emt 0:01:56]} 9. Bf4 {[%emt 0:05:53]} Ne4 {[%emt 0:05:18]} 10. Rc1 {[%emt 0:04:44]} Rc8 {[%emt 0:05:02]} 11. Qb3 {[%emt 0:11:24]} Nxc3 {[%emt 0:04:45]} 12. Rxc3 {[%emt 0:01:48]} Na5 {[%emt 0:02:41]} 13. Qa4 {[%emt 0:01:42]} b6 {[%emt 0:03:49]} 14. Ne5 {[%emt 0:14:14]} g5 {[%emt 0:09:37]} 15. Bd2 {[%emt 0:02:27]} Qd6 {[%emt 0:03:56]} 16. Rcc1 {[%emt 0:03:44]} f6 {[%emt 0:05:12]} 17. Bxa5 {[%emt 0:00:31]} fxe5 {[%emt 0:01:56]} 18. dxe5 {[%emt 0:00:46]} Qxe5 {[%emt 0:01:25]} 19. Bc3 {[%emt 0:00:10]} Qd6 {[%emt 0:02:43]} 20. Qd4 {[%emt 0:01:54]} Bf6 {[%emt 0:01:24]} 21. Qxd5+ {[%emt 0:00:40]} Qxd5 {[%emt 0:01:55]} 22. Bxd5+ {[%emt 0:00:03]} Kg7 {[%emt 0:00:15]} 23. Bxf6+ {[%emt 0:01:15]} Kxf6 {[%emt 0:00:37]} 24. e4 {[%emt 0:01:32]} Bg6 {[%emt 0:02:30]} 25. Rc6+ {[%emt 0:03:37]} Ke7 {[%emt 0:02:18]} 26. Rfc1 {[%emt 0:00:06]} Kd8 {[%emt 0:00:30]} 27. Be6 {[%emt 0:00:51]} Ra8 {[%emt 0:01:37]} 28. Rxc7 {[%emt 0:01:09]} Bxe4 29. Rd7+ Ke8 {[%emt 0:00:55]} 30. Re1 {[%emt 0:00:42]} 1-0

[Event "WYCC U14 Open 2019"]
[Site "Mumbai"]
[Date "2019.10.03"]
[Round "3.12"]
[White "Tadic, Stefan"]
[Black "Sahakyan, Aleks"]
[Result "1-0"]
[ECO "B55"]
[WhiteElo "2295"]
[BlackElo "1991"]
[Annotator "NA"]
[PlyCount "113"]
[EventDate "2019.10.02"]
[EventType "swiss"]
[EventCountry "IND"]
[SourceTitle "playchess.com"]
[Source "ChessBase"]
[SourceQuality "1"]
[TimeControl "40/5400+30:1800+30"]

1. e4 {[%emt 0:00:00]} c5 {[%emt 0:00:00]} 2. Nf3 {[%emt 0:00:00]} d6 {[%emt 0:00:00]} 3. d4 {[%emt 0:00:00]} cxd4 {[%emt 0:00:00]} 4. Nxd4 {[%emt 0:00:00]} Nf6 {[%emt 0:00:00]} 5. f3 {[%emt 0:00:00]} e5 {[%emt 0:00:00]} 6. Bb5+ {[%emt 0:00:00]} Nbd7 {[%emt 0:00:17]} 7. Nf5 {[%emt 0:00:00]} d5 {[%emt 0:00:28]} 8. exd5 {[%emt 0:00:10]} a6 {[%emt 0:00:05]} 9. Ba4 {[%emt 0:00:03]} b5 {[%emt 0:00:08]} 10. Bb3 {[%emt 0:00:05]} Nc5 {[%emt 0:00:09]} 11. Ne3 {[%emt 0:00:05]} Bb7 {[%emt 0:03:13]} 12. c4 {[%emt 0:16:08]} Qa5+ {[%emt 0:13:24]} 13. Nc3 {[%emt 0:13:49]} Nxb3 {[%emt 0:07:06]} 14. Qxb3 {[%emt 0:00:20]} Bc5 {[%emt 0:00:01]} 15. Bd2 {[%emt 0:21:55]} Qb6 {[%emt 0:03:48]} 16. Ne4 {[%emt 0:10:15]} Nxe4 {[%emt 0:01:56]} 17. fxe4 {[%emt 0:00:10]} Qg6 {[%emt 0:02:30]} 18. Qd3 {[%emt 0:02:37]} O-O {[%emt 0:04:24]} 19. b3 {[%emt 0:08:50]} Bc8 {[%emt 0:11:39]} 20. O-O {[%emt 0:10:47]} Bh3 {[%emt 0:06:02]} 21. Rf2 {[%emt 0:02:30]} f5 {[%emt 0:01:13]} 22. Kh1 {[%emt 0:03:29]} f4 {[%emt 0:01:30]} 23. gxh3 {[%emt 0:00:36]} fxe3 {[%emt 0:00:29]} 24. Rg2 {[%emt 0:01:34]} Qh5 {[%emt 0:02:52]} 25. Be1 {[%emt 0:02:36]} Rf6 {[%emt 0:13:38]} 26. Bg3 {[%emt 0:00:16]} Raf8 {[%emt 0:00:38]} 27. Qe2 {[%emt 0:00:23]} Qxh3 {[%emt 0:00:39]} 28. Bxe5 {[%emt 0:00:55]} Rg6 {[%emt 0:01:48]} 29. Rxg6 {[%emt 0:05:03]} hxg6 {[%emt 0:03:47]} 30. Bg3 {[%emt 0:00:39]} Bd6 {[%emt 0:01:35]} 31. Qg2 {[%emt 0:00:28]} Qh5 {[%emt 0:03:24]} 32. Rg1 {[%emt 0:01:34]} Bxg3 {[%emt 0:03:31]} 33. Qxg3 {[%emt 0:00:04]} Rf2 {[%emt 0:00:05]} 34. Re1 {[%emt 0:00:52]} Rf3 {[%emt 0:04:11]} 35. Qg1 {[%emt 0:00:06]} Qh3 {[%emt 0:00:22]} 36. Qg2 {[%emt 0:00:35]} Qh5 {[%emt 0:01:41]} 37. d6 {[%emt 0:00:39]} Rf8 {[%emt 0:01:32]} 38. Qg3 {[%emt 0:00:14]} e2 {[%emt 0:02:05]} 39. Qg2 {[%emt 0:00:50]} Qe5 {[%emt 0:01:07]} 40. Qxe2 {[%emt 0:00:22]} Qxd6 {[%emt 0:00:06]} 41. cxb5 {[%emt 0:30:52]} axb5 {[%emt 0:30:19]} 42. Qxb5 {[%emt 0:00:00]} Qf4 {[%emt 0:00:00]} 43. Qd3 {[%emt 0:00:00]} Qf2 {[%emt 0:00:00]} 44. Qe2 {[%emt 0:00:00]} Qh4 {[%emt 0:00:00]} 45. e5 {[%emt 0:00:00]} Rf2 {[%emt 0:00:00]} 46. Qc4+ {[%emt 0:00:00]} Qxc4 {[%emt 0:00:00]} 47. bxc4 {[%emt 0:00:00]} Rxa2 {[%emt 0:00:00]} 48. Rc1 {[%emt 0:00:00]} Re2 {[%emt 0:00:00]} 49. c5 {[%emt 0:00:00]} Rxe5 {[%emt 0:00:00]} 50. c6 {[%emt 0:00:00]} Re8 {[%emt 0:00:00]} 51. c7 {[%emt 0:00:00]} Rc8 {[%emt 0:00:00]} 52. Kg2 {[%emt 0:00:00]} Kf7 {[%emt 0:00:00]} 53. Kg3 {[%emt 0:00:00]} Ke6 {[%emt 0:00:00]} 54. Kg4 {[%emt 0:00:00]} Kd7 {[%emt 0:00:00]} 55. Kg5 {[%emt 0:00:00]} Rh8 {[%emt 0:00:00]} 56. c8=Q+ {[%emt 0:00:00]} Rxc8 {[%emt 0:00:00]} 57. Rxc8 {[%emt 0:00:00]} 1-0

[Event "WYCC U14 Open 2019"]
[Site "Mumbai"]
[Date "2019.10.03"]
[Round "3.13"]
[White "Morgunov, Marc"]
[Black "Sun, Jiajun B"]
[Result "1/2-1/2"]
[ECO "B43"]
[WhiteElo "2280"]
[BlackElo "1977"]
[Annotator "NA"]
[PlyCount "60"]
[EventDate "2019.10.02"]
[EventType "swiss"]
[EventCountry "IND"]
[SourceTitle "playchess.com"]
[Source "ChessBase"]
[SourceQuality "1"]
[TimeControl "40/5400+30:1800+30"]

1. e4 {[%emt 0:00:00]} c5 {[%emt 0:00:00]} 2. Nf3 {[%emt 0:00:00]} e6 {[%emt 0:00:00]} 3. d4 {[%emt 0:00:34]} cxd4 {[%emt 0:00:00]} 4. Nxd4 {[%emt 0:00:05]} a6 {[%emt 0:00:00]} 5. Nc3 {[%emt 0:04:47]} Qc7 {[%emt 0:00:07]} 6. g3 {[%emt 0:01:14]} Nf6 {[%emt 0:00:40]} 7. Bg2 {[%emt 0:00:49]} Bb4 {[%emt 0:00:26]} 8. O-O {[%emt 0:05:29]} Nc6 {[%emt 0:01:10]} 9. a3 {[%emt 0:09:34]} Bxc3 {[%emt 0:00:46]} 10. bxc3 {[%emt 0:00:06]} d6 {[%emt 0:00:02]} 11. Nxc6 {[%emt 0:04:55]} bxc6 {[%emt 0:00:09]} 12. Qd3 {[%emt 0:09:46]} O-O {[%emt 0:03:43]} 13. Rd1 {[%emt 0:11:30]} d5 {[%emt 0:06:25]} 14. Rb1 {[%emt 0:10:29]} a5 {[%emt 0:02:57]} 15. exd5 {[%emt 0:03:28]} cxd5 {[%emt 0:03:06]} 16. Bf4 {[%emt 0:02:21]} Qc5 {[%emt 0:00:17]} 17. Qd4 {[%emt 0:02:22]} Qxa3 {[%emt 0:01:09]} 18. c4 {[%emt 0:01:27]} Ba6 {[%emt 0:15:11]} 19. cxd5 {[%emt 0:02:39]} Nxd5 {[%emt 0:02:07]} 20. Ra1 {[%emt 0:04:40]} Qb4 {[%emt 0:02:13]} 21. Qxb4 {[%emt 0:01:16]} axb4 {[%emt 0:00:07]} 22. Bd6 {[%emt 0:01:45]} Rfc8 {[%emt 0:02:20]} 23. Bxd5 {[%emt 0:01:01]} exd5 {[%emt 0:00:23]} 24. Bxb4 {[%emt 0:01:23]} Bc4 {[%emt 0:00:21]} 25. Rxa8 {[%emt 0:00:19]} Rxa8 {[%emt 0:00:04]} 26. Bc5 {[%emt 0:00:40]} Rc8 {[%emt 0:00:25]} 27. Bd4 {[%emt 0:00:14]} f6 {[%emt 0:00:08]} 28. c3 {[%emt 0:00:04]} Kf7 {[%emt 0:00:05]} 29. Re1 {[%emt 0:00:17]} Re8 {[%emt 0:00:13]} 30. Rxe8 {[%emt 0:00:05]} Kxe8 {[%emt 0:00:03]} 1/2-1/2

[Event "WYCC U14 Open 2019"]
[Site "Mumbai"]
[Date "2019.10.03"]
[Round "3.14"]
[White "Poltorak, Sebastian"]
[Black "Suleymanli, Suleyman"]
[Result "1-0"]
[ECO "D20"]
[WhiteElo "2130"]
[BlackElo "1941"]
[Annotator "NA"]
[PlyCount "67"]
[EventDate "2019.10.02"]
[EventType "swiss"]
[EventCountry "IND"]
[SourceTitle "playchess.com"]
[Source "ChessBase"]
[SourceQuality "1"]
[TimeControl "40/5400+30:1800+30"]

1. d4 {[%emt 0:00:00]} d5 {[%emt 0:00:00]} 2. c4 {[%emt 0:00:00]} dxc4 {[%emt 0:00:00]} 3. e4 {[%emt 0:00:15]} Nf6 {[%emt 0:00:13]} 4. e5 {[%emt 0:02:59]} Nd5 {[%emt 0:00:15]} 5. Bxc4 {[%emt 0:00:16]} Nb6 {[%emt 0:00:17]} 6. Bd3 {[%emt 0:01:12]} Nc6 {[%emt 0:00:54]} 7. Be3 {[%emt 0:01:31]} Nb4 {[%emt 0:03:18]} 8. Be4 {[%emt 0:02:39]} f5 {[%emt 0:03:31]} 9. exf6 {[%emt 0:05:06]} exf6 {[%emt 0:00:48]} 10. a3 {[%emt 0:05:57]} Qe7 {[%emt 0:12:58]} 11. Nc3 {[%emt 0:09:01]} Nc6 {[%emt 0:02:45]} 12. Nge2 {[%emt 0:06:58]} Bd7 {[%emt 0:04:29]} 13. O-O {[%emt 0:06:40]} O-O-O {[%emt 0:02:47]} 14. d5 {[%emt 0:01:31]} Ne5 {[%emt 0:03:18]} 15. Rc1 {[%emt 0:03:47]} f5 {[%emt 0:06:46]} 16. Bxb6 {[%emt 0:02:21]} axb6 {[%emt 0:00:56]} 17. Bxf5 {[%emt 0:08:30]} Bxf5 {[%emt 0:06:27]} 18. Qa4 {[%emt 0:00:20]} Bd3 {[%emt 0:04:09]} 19. Qa8+ {[%emt 0:02:16]} Kd7 {[%emt 0:00:07]} 20. Qxb7 {[%emt 0:00:38]} Qf6 {[%emt 0:09:19]} 21. d6 {[%emt 0:10:08]} Bxd6 {[%emt 0:14:23]} 22. Nd5 {[%emt 0:00:15]} Qf7 {[%emt 0:04:06]} 23. Rxc7+ {[%emt 0:00:34]} Bxc7 {[%emt 0:00:19]} 24. Qxc7+ {[%emt 0:00:04]} Ke6 {[%emt 0:01:13]} 25. Nef4+ {[%emt 0:00:12]} Kf5 {[%emt 0:00:26]} 26. g4+ {[%emt 0:00:38]} Kxg4 {[%emt 0:01:55]} 27. Qxe5 {[%emt 0:01:25]} Bxf1 {[%emt 0:07:09]} 28. h3+ {[%emt 0:16:13]} Bxh3 {[%emt 0:04:46]} 29. f3+ {[%emt 0:00:07]} Kh4 {[%emt 0:00:49]} 30. Qe1+ {[%emt 0:01:26]} Kg5 {[%emt 0:00:11]} 31. Nxh3+ {[%emt 0:00:04]} Kg6 {[%emt 0:00:41]} 32. Qe4+ {[%emt 0:00:12]} Kh6 {[%emt 0:00:31]} 33. Qe3+ {[%emt 0:00:05]} Kg6 {[%emt 0:00:12]} 34. Qg5# {[%emt 0:00:35]} 1-0

[Event "WYCC U14 Open 2019"]
[Site "Mumbai"]
[Date "2019.10.03"]
[Round "3.16"]
[White "Gokhale Rishabh Chandrashekhar"]
[Black "Pranav Vijay"]
[Result "0-1"]
[ECO "E15"]
[WhiteElo "1925"]
[BlackElo "2265"]
[Annotator "NA"]
[PlyCount "47"]
[EventDate "2019.10.02"]
[EventType "swiss"]
[EventCountry "IND"]
[SourceTitle "playchess.com"]
[Source "ChessBase"]
[SourceQuality "1"]
[TimeControl "40/5400+30:1800+30"]

1. Nf3 {[%emt 0:00:00]} Nf6 {[%emt 0:00:00]} 2. d4 {[%emt 0:00:02]} e6 {[%emt 0:00:00]} 3. c4 {[%emt 0:00:21]} b6 {[%emt 0:00:36]} 4. g3 {[%emt 0:00:11]} Ba6 {[%emt 0:00:07]} 5. b3 {[%emt 0:00:22]} Bb7 {[%emt 0:02:19]} 6. Bg2 {[%emt 0:00:11]} Bb4+ {[%emt 0:00:09]} 7. Bd2 {[%emt 0:00:09]} Be7 {[%emt 0:00:10]} 8. Nc3 {[%emt 0:01:00]} O-O {[%emt 0:00:38]} 9. O-O {[%emt 0:04:01]} d6 {[%emt 0:10:16]} 10. Qc2 {[%emt 0:02:55]} Nbd7 {[%emt 0:02:31]} 11. Bf4 {[%emt 0:05:29]} c5 {[%emt 0:02:53]} 12. dxc5 {[%emt 0:19:24]} bxc5 {[%emt 0:01:58]} 13. Rad1 {[%emt 0:02:17]} Qb6 {[%emt 0:01:38]} 14. e4 {[%emt 0:06:38]} Rfe8 {[%emt 0:09:33]} 15. Rfe1 {[%emt 0:01:13]} Rad8 {[%emt 0:03:14]} 16. h3 {[%emt 0:05:41]} h6 {[%emt 0:02:47]} 17. Bc1 {[%emt 0:03:02]} Bc6 {[%emt 0:02:32]} 18. Bb2 {[%emt 0:02:51]} Qb7 {[%emt 0:00:40]} 19. Ba1 {[%emt 0:01:14]} Nxe4 {[%emt 0:03:34]} 20. Kh2 {[%emt 0:05:48]} Ne5 {[%emt 0:01:46]} 21. Nxe5 {[%emt 0:00:30]} dxe5 {[%emt 0:00:19]} 22. Nd5 {[%emt 0:00:57]} Bf8 {[%emt 0:01:08]} 23. f4 {[%emt 0:07:37]} Qb8 {[%emt 0:00:52]} 24. fxe5 {[%emt 0:01:28]} 0-1

[Event "WYCC U14 Open 2019"]
[Site "Mumbai"]
[Date "2019.10.04"]
[Round "4.2"]
[White "Kolay, Alex"]
[Black "Suleymanli, Aydin"]
[Result "1/2-1/2"]
[ECO "D15"]
[WhiteElo "2164"]
[BlackElo "2426"]
[Annotator "NA"]
[PlyCount "65"]
[EventDate "2019.10.02"]
[EventType "swiss"]
[EventCountry "IND"]
[SourceTitle "playchess.com"]
[Source "ChessBase"]
[SourceQuality "1"]
[TimeControl "40/5400+30:1800+30"]

1. d4 d5 {[%emt 0:02:25]} 2. c4 {[%emt 0:00:00]} c6 {[%emt 0:00:15]} 3. Nf3 {[%emt 0:00:00]} Nf6 {[%emt 0:00:05]} 4. Nc3 {[%emt 0:00:00]} a6 {[%emt 0:00:03]} 5. c5 {[%emt 0:00:07]} Bf5 {[%emt 0:00:08]} 6. Bf4 {[%emt 0:00:10]} Nbd7 {[%emt 0:00:04]} 7. e3 {[%emt 0:00:34]} Nh5 {[%emt 0:05:08]} 8. Bg5 {[%emt 0:02:33]} h6 {[%emt 0:00:34]} 9. Bh4 {[%emt 0:00:07]} g5 {[%emt 0:00:52]} 10. Bg3 {[%emt 0:00:07]} Nxg3 {[%emt 0:00:14]} 11. hxg3 {[%emt 0:00:06]} Bg7 {[%emt 0:05:22]} 12. Bd3 {[%emt 0:05:42]} Bg4 {[%emt 0:00:40]} 13. Qb3 {[%emt 0:01:05]} Rb8 {[%emt 0:02:12]} 14. Nh2 {[%emt 0:04:13]} Be6 {[%emt 0:00:26]} 15. Qa3 {[%emt 0:20:45]} f5 {[%emt 0:03:42]} 16. f4 {[%emt 0:01:43]} g4 {[%emt 0:01:04]} 17. Na4 {[%emt 0:01:50]} h5 {[%emt 0:03:04]} 18. Nf1 {[%emt 0:01:54]} Bf6 {[%emt 0:02:01]} 19. Qc3 {[%emt 0:01:10]} Kf7 {[%emt 0:00:49]} 20. Qc2 {[%emt 0:04:53]} Kg6 {[%emt 0:00:19]} 21. b4 {[%emt 0:01:17]} Qf8 {[%emt 0:04:12]} 22. Be2 {[%emt 0:03:46]} Kg7 {[%emt 0:01:48]} 23. Bd3 {[%emt 0:00:42]} Kg6 {[%emt 0:00:25]} 24. Be2 {[%emt 0:00:11]} Qg7 {[%emt 0:00:27]} 25. Nb2 {[%emt 0:00:51]} Kf7 {[%emt 0:01:06]} 26. Nd3 {[%emt 0:00:11]} h4 {[%emt 0:00:17]} 27. gxh4 {[%emt 0:03:09]} Rxh4 {[%emt 0:01:57]} 28. Rxh4 {[%emt 0:03:22]} Bxh4+ {[%emt 0:00:07]} 29. g3 {[%emt 0:00:17]} Bf6 {[%emt 0:00:22]} 30. a4 {[%emt 0:01:29]} Rh8 {[%emt 0:02:31]} 31. Nf2 {[%emt 0:01:16]} Nf8 {[%emt 0:10:16]} 32. b5 {[%emt 0:15:21]} Ng6 {[%emt 0:02:48]} 33. bxa6 {[%emt 0:07:18]} 1/2-1/2